[Event "VII Famalicao Open 2019"]
[Site "Famalicao"]
[Date "2019.07.29"]
[Round "3.11"]
[White "Gama, Joao Paulo Antunes D"]
[Black "Pinheiro, Albano"]
[Result "1/2-1/2"]
[ECO "B31"]
[WhiteElo "1819"]
[BlackElo "1989"]
[Annotator "NA RC"]
[PlyCount "76"]
[EventDate "2019.07.28"]
[EventType "swiss"]
[EventCountry "POR"]
[SourceTitle "playchess.com"]
[Source "ChessBase"]
[SourceQuality "1"]
[TimeControl "5400+30"]

{[%evp 8,63,32,17,16,15,45,27,32767,32767,32767,32767,32767,32767,32767,32767,55,6,16,32767,32767,32767,109,89,100,91,100,95,93,30,12,9,62,6,51,0,0,0,0,0,0,0,0,0,0,0,0,32767,32767,32767,32767,32767,0,0,0,0,0,0]} 1. e4 {[%emt 0:00:00]} c5 {[%emt 0:00:20]} 2. Nf3 {[%emt 0:00:00]} Nc6 {[%emt 0:00:24]} 3. Bb5 {[%emt 0:00:03]} g6 {[%emt 0:00:07]} 4. O-O {[%emt 0:00:16]} Bg7 {[%emt 0:00:05]} 5. Re1 {[%emt 0:00:13]} e5 {[%emt 0:00:06]} 6. Bxc6 {[%emt 0:00:37]} bxc6 {[%emt 0:00:08]} 7. c3 {[%emt 0:00:25]} Ne7 {[%emt 0:02:29]} 8. d4 {[%emt 0:01:34]} cxd4 {[%emt 0:00:08]} 9. cxd4 {[%emt 0:00:05]} exd4 {[%emt 0:01:27]} 10. Nxd4 {[%emt 0:00:16]} O-O {[%emt 0:08:01]} 11. Nc3 {[%emt 0:01:43]} Bb7 {[%emt 0:17:13] B31: Sicilian: 2...Nc6 3 Bb5 g6} (11... Rb8 12. Nb3 d5 13. Bg5 d4 14. Na4 h6 15. Bh4 Be6 16. Nac5 Bxb3 17. axb3 Rb5 18. Nd3 a5 19. Qc2 Re8 20. Bxe7 Rxe7 {1-0 (50) Maghsoodloo,P (2688)-Zvjaginsev,V (2642) St Petersburg 2018}) 12. e5 {[%emt 0:05:02]} Re8 {[%emt 0:05:56]} 13. Bg5 {[%emt 0:03:56]} h6 $146 {[%emt 0:13:12]} ({Predecessor:} 13... d5 14. Na4 Qc7 15. Bf6 c5 16. Rc1 c4 17. Bxg7 Kxg7 18. Nb5 Qc6 19. Nd6 {1-0 (27) Kunal,M (2309)-Sheth,P (1640) Noida 2016}) 14. Bf6 {[%emt 0:09:16]} Bxf6 {[%emt 0:01:44]} 15. exf6 {[%emt 0:00:11]} Nd5 {[%emt 0:02:09]} 16. Rxe8+ {[%emt 0:04:20]} Qxe8 {[%emt 0:00:03]} 17. Nxd5 {[%emt 0:00:08]} cxd5 {[%emt 0:00:02]} 18. Qf3 {[%emt 0:06:37]} ({White should play} 18. Qb3 $16 Qb8 19. Re1) 18... Qe5 {[%emt 0:04:10]} 19. Rd1 {[%emt 0:02:34]} Rc8 {[%emt 0:05:33]} 20. h3 {[%emt 0:00:16]} Rc4 {[%emt 0:02:34]} 21. Qb3 {[%emt 0:04:43]} ({White should try} 21. Qe3 $1 $14 Qxf6 22. b3) 21... Rxd4 {[%emt 0:08:00]} 22. Rxd4 {[%emt 0:00:06]} Qxd4 {[%emt 0:00:07]} 23. Qxb7 {[%emt 0:00:11]} Qxf6 {[%emt 0:00:48]} 24. Qxd5 {[%emt 0:00:28]} Qxb2 {[%emt 0:01:20]} 25. Qa8+ {[%emt 0:08:30]} Kg7 {[%emt 0:00:06]} 26. Qxa7 {[%emt 0:00:04]} d5 {[%emt 0:00:11]} 27. Qa5 {[%emt 0:05:05]} Qc1+ {[%emt 0:03:47]} 28. Kh2 {[%emt 0:00:23]} Qf4+ {[%emt 0:00:07]} 29. Kg1 {[%emt 0:00:32]} Qc4 {[%emt 0:02:22]} 30. a4 {[%emt 0:00:40]} d4 {[%emt 0:01:10]} 31. Qe5+ {[%emt 0:00:39]} Kh7 $11 {[%emt 0:00:07]} 32. Qf4 {[%emt 0:01:51]} Qd5 {[%emt 0:04:03]} 33. Qd2 {[%emt 0:03:49]} d3 {[%emt 0:08:59]} 34. f3 {[%emt 0:02:09]} Qd4+ {[%emt 0:03:17]} 35. Kf1 {[%emt 0:00:37]} Qa1+ {[%emt 0:01:51]} 36. Kf2 {[%emt 0:00:45]} Qd4+ {[%emt 0:00:44]} 37. Kf1 {[%emt 0:00:11]} Qa1+ {[%emt 0:02:01]} 38. Kf2 {[%emt 0:00:07]} Qd4+ {[%emt 0:00:05]} 1/2-1/2

[Event "VII Famalicao Open 2019"]
[Site "Famalicao"]
[Date "2019.07.29"]
[Round "3.12"]
[White "Sarabando, Rodrigo Andias"]
[Black "Silva, Mariana Sofia T."]
[Result "0-1"]
[ECO "A58"]
[WhiteElo "1363"]
[BlackElo "1872"]
[Annotator "NA RC"]
[PlyCount "58"]
[EventDate "2019.07.28"]
[EventType "swiss"]
[EventCountry "POR"]
[SourceTitle "playchess.com"]
[Source "ChessBase"]
[SourceQuality "1"]
[TimeControl "5400+30"]

{[%evp 22,48,-13,-71,-62,-43,-75,-47,32767,32767,32767,32767,32767,-76,-83,-123,-137,-135,-133,-225,-243,-339,-344,-351,-210,-204,-204,-244,-260]} 1. d4 {[%emt 0:00:00]} Nf6 {[%emt 0:05:02]} 2. c4 {[%emt 0:00:04]} c5 {[%emt 0:00:07]} 3. d5 {[%emt 0:00:44]} b5 {[%emt 0:00:08]} 4. cxb5 {[%emt 0:00:36]} a6 {[%emt 0:00:11]} 5. bxa6 {[%emt 0:00:05]} d6 {[%emt 0:01:16]} 6. g3 {[%emt 0:01:53]} Bxa6 {[%emt 0:01:18]} 7. Bg2 {[%emt 0:00:41]} g6 {[%emt 0:00:41]} 8. e4 {[%emt 0:01:20] A58: Benko/Volga Gambit: Lines with 5 bxa6} (8. Nf3 Bg7 9. O-O Nbd7 10. Nc3 Nb6 11. Rb1 Bc4 12. Ne1 Nfd7 13. a3 O-O 14. Bd2 Nf6 15. Bc1 Nfd7 16. Bd2 Nf6 17. b3 Bxd5 18. Nxd5 Nfxd5 19. a4 {1-0 (59) Inarkiev,E (2674)-Khalifman,A (2638) Aix les Bains 2011}) 8... Nbd7 {[%emt 0:00:34]} 9. Ne2 {[%emt 0:00:13]} Ne5 {[%emt 0:03:14]} 10. O-O {[%emt 0:02:03]} Nd3 {[%emt 0:03:20]} 11. Qc2 $146 {[%emt 0:01:56]} ({Predecessor:} 11. Nbc3 Nxc1 12. Qxc1 Bg7 13. Re1 O-O 14. f4 Nd7 15. Bf1 Qb6 {½-½ (67) Herraiz Hidalgo,H-Ruiz,J (2280) Spain 1992}) 11... Qb6 {[%emt 0:06:40]} 12. a3 {[%emt 0:05:00]} (12. Nf4 $11 {keeps the balance.} Nxf4 13. Bxf4) 12... Bg7 {[%emt 0:01:51]} 13. Nbc3 {[%emt 0:01:03]} O-O {[%emt 0:05:25]} 14. Rd1 {[%emt 0:01:22]} Nxc1 {[%emt 0:02:20]} 15. Raxc1 {[%emt 0:02:35]} Rfb8 {[%emt 0:01:19]} 16. Rb1 {[%emt 0:03:22]} Ng4 {[%emt 0:07:46]} 17. h3 {[%emt 0:08:50]} Ne5 {[%emt 0:01:07]} 18. Kh2 {[%emt 0:00:49]} (18. Nc1 $15) 18... Nc4 {[%emt 0:03:39]} 19. Bf1 {[%emt 0:06:15]} Qb3 {[%emt 0:04:22]} 20. Rdc1 {[%emt 0:05:07]} (20. Qxb3 $17 Rxb3 21. Na4) 20... Nxb2 {[%emt 0:09:39]} 21. Qxb3 {[%emt 0:03:22]} Rxb3 {[%emt 0:01:57]} 22. Rc2 {[%emt 0:02:05]} Bxe2 {[%emt 0:06:05]} ({Less strong is} 22... Rxa3 23. Rcxb2 Bxc3 24. Nxc3 $17) (22... Rab8 $142 23. Nc1 Rxc3 24. Rxc3 Bxf1) 23. Nxe2 {[%emt 0:03:06]} Raxa3 {[%emt 0:01:02]} 24. Nc1 {[%emt 0:04:44]} Rb4 $19 {[%emt 0:00:17]} 25. Bg2 {[%emt 0:01:54]} h5 {[%emt 0:00:45]} 26. h4 {[%emt 0:00:39]} Nd3 {[%emt 0:01:47]} 27. Rxb4 {[%emt 0:01:06]} Nxb4 {[%emt 0:00:12]} 28. Re2 {[%emt 0:00:56]} c4 29. f4 {[%emt 0:06:29]} Ra1 {[%emt 0:05:26]} 0-1

[Event "VII Famalicao Open 2019"]
[Site "Famalicao"]
[Date "2019.07.29"]
[Round "3.13"]
[White "Guimaraes, Alvaro"]
[Black "Carneiro, Gustavo"]
[Result "1-0"]
[ECO "A00"]
[WhiteElo "1796"]
[BlackElo "1310"]
[Annotator "NA RC"]
[PlyCount "153"]
[EventDate "2019.07.28"]
[EventType "swiss"]
[EventCountry "POR"]
[SourceTitle "playchess.com"]
[Source "ChessBase"]
[SourceQuality "1"]
[TimeControl "5400+30"]

1. g3 {[%emt 0:01:08]} Nf6 {[%emt 0:00:00]} 2. Bg2 {[%emt 0:00:08]} e6 {[%emt 0:00:29]} 3. e4 {[%emt 0:00:08]} d5 {[%emt 0:01:32]} 4. e5 {[%emt 0:00:27]} Nfd7 {[%emt 0:02:24]} 5. d4 {[%emt 0:00:35]} c5 {[%emt 0:01:37]} 6. c3 {[%emt 0:00:11]} cxd4 {[%emt 0:01:12]} 7. cxd4 {[%emt 0:00:01]} Qa5+ 8. Nc3 {[%emt 0:01:27]} Bb4 {[%emt 0:06:49]} 9. Bd2 {[%emt 0:00:18]} Nc6 {[%emt 0:02:17]} 10. Nf3 {[%emt 0:00:16]} a6 {[%emt 0:05:38]} 11. O-O {[%emt 0:00:16]} O-O {[%emt 0:00:59]} 12. Qc2 Be7 {[%emt 0:02:56]} 13. a3 {[%emt 0:05:04]} Re8 {[%emt 0:05:30]} 14. h4 {[%emt 0:01:46]} Nf8 {[%emt 0:00:50]} 15. Rfd1 {[%emt 0:02:42]} b5 {[%emt 0:04:36]} 16. Nxd5 {[%emt 0:05:50]} Qd8 {[%emt 0:07:18]} 17. Nxe7+ {[%emt 0:00:28]} Nxe7 {[%emt 0:02:24]} 18. Bg5 Bb7 19. Ne1 {[%emt 0:02:51]} Rc8 {[%emt 0:03:18]} 20. Qd2 {[%emt 0:01:04]} Bxg2 {[%emt 0:00:30]} 21. Nxg2 {[%emt 0:00:02]} Qd5 {[%emt 0:02:49]} 22. Nf4 {[%emt 0:00:37]} Qb7 {[%emt 0:06:27]} 23. Nh5 Qf3 24. Nxg7 {[%emt 0:13:00]} Kxg7 {[%emt 0:03:31]} 25. Bf6+ {[%emt 0:00:14]} Kg8 {[%emt 0:01:43]} 26. Qg5+ {[%emt 0:00:14]} Nfg6 {[%emt 0:05:47]} 27. h5 {[%emt 0:00:28]} Rc2 {[%emt 0:01:54]} 28. Rf1 {[%emt 0:00:23]} Nf5 {[%emt 0:01:18]} 29. hxg6 {[%emt 0:01:15]} fxg6 {[%emt 0:01:38]} 30. b4 {[%emt 0:02:30]} Re2 {[%emt 0:02:51]} 31. Qf4 {[%emt 0:01:55]} Qxf4 {[%emt 0:02:41]} 32. gxf4 {[%emt 0:00:02]} Nxd4 {[%emt 0:00:22]} 33. Rfd1 {[%emt 0:00:16]} Nf5 {[%emt 0:02:52]} 34. Kg2 {[%emt 0:01:18]} Ne3+ {[%emt 0:04:50]} 35. Kf3 {[%emt 0:00:01]} Nxd1 {[%emt 0:00:23]} 36. Kxe2 {[%emt 0:00:02]} Nc3+ {[%emt 0:00:12]} 37. Kf3 {[%emt 0:00:27]} Nd5 {[%emt 0:00:42]} 38. Bg5 {[%emt 0:01:00]} Rc8 {[%emt 0:01:15]} 39. Bh6 {[%emt 0:00:39]} Rc3+ {[%emt 0:02:04]} 40. Kg4 {[%emt 0:00:02]} Kf7 {[%emt 0:00:35]} 41. a4 {[%emt 0:00:16]} Nxb4 {[%emt 0:01:55]} 42. axb5 {[%emt 0:00:04]} axb5 {[%emt 0:00:17]} 43. Ra7+ {[%emt 0:00:07]} Kg8 {[%emt 0:00:21]} 44. Rg7+ {[%emt 0:00:31]} Kh8 {[%emt 0:00:34]} 45. Rb7 {[%emt 0:00:38]} Kg8 {[%emt 0:00:25]} 46. Rxb5 {[%emt 0:00:36]} Nd3 {[%emt 0:01:15]} 47. Rb8+ {[%emt 0:00:41]} Kf7 {[%emt 0:00:29]} 48. Rb7+ {[%emt 0:00:02]} Kg8 {[%emt 0:00:26]} 49. Rg7+ {[%emt 0:01:40]} Kh8 {[%emt 0:00:35]} 50. f3 {[%emt 0:01:54]} Nf2+ {[%emt 0:02:50]} 51. Kg3 {[%emt 0:01:47]} Ne4+ {[%emt 0:00:18]} 52. Kh4 {[%emt 0:01:07]} Nf2 {[%emt 0:03:37]} 53. Rf7 {[%emt 0:00:34]} Rc8 {[%emt 0:00:55]} 54. Kg5 {[%emt 0:00:31]} Nd3 {[%emt 0:01:04]} 55. Kf6 {[%emt 0:01:09]} Nc5 {[%emt 0:01:08]} 56. Bf8 {[%emt 0:00:44]} h5 {[%emt 0:03:32]} 57. Kxg6 {[%emt 0:01:02]} Kg8 {[%emt 0:01:12]} 58. Bxc5 {[%emt 0:00:28]} Rxc5 {[%emt 0:00:07]} 59. Re7 {[%emt 0:00:33]} Kf8 {[%emt 0:00:20]} 60. Rxe6 {[%emt 0:01:17]} h4 {[%emt 0:00:11]} 61. Kg5 {[%emt 0:00:36]} h3 {[%emt 0:00:17]} 62. Rh6 {[%emt 0:00:06]} Rc7 {[%emt 0:00:10]} 63. Rxh3 {[%emt 0:00:28]} Rg7+ {[%emt 0:00:02]} 64. Kf5 {[%emt 0:00:37]} Rf7+ {[%emt 0:00:10]} 65. Ke4 {[%emt 0:00:07]} Ke7 {[%emt 0:00:05]} 66. f5 {[%emt 0:00:10]} Rf8 {[%emt 0:00:48]} 67. Rh7+ {[%emt 0:00:14]} Ke8 {[%emt 0:00:01]} 68. Ra7 {[%emt 0:00:30]} Rf7 {[%emt 0:00:49]} 69. Rxf7 {[%emt 0:00:15]} Kxf7 {[%emt 0:00:01]} 70. e6+ {[%emt 0:00:07]} Kf6 {[%emt 0:00:03]} 71. Kd5 {[%emt 0:00:09]} Ke7 72. Ke5 {[%emt 0:00:09]} Ke8 {[%emt 0:01:09]} 73. f6 {[%emt 0:00:30]} Kf8 {[%emt 0:00:06]} 74. e7+ {[%emt 0:00:24]} Kf7 {[%emt 0:00:02]} 75. Kd6 {[%emt 0:00:05]} Ke8 76. f7+ {[%emt 0:00:08]} Kxf7 {[%emt 0:00:07]} 77. Kd7 {[%emt 0:00:08]} 1-0

[Event "VII Famalicao Open 2019"]
[Site "Famalicao"]
[Date "2019.07.29"]
[Round "3.14"]
[White "Branco, Ricardo Joao"]
[Black "Filipe, Guilherme Castro"]
[Result "1/2-1/2"]
[ECO "D37"]
[WhiteElo "1864"]
[BlackElo "1208"]
[Annotator "NA RC"]
[PlyCount "79"]
[EventDate "2019.07.28"]
[EventType "swiss"]
[EventCountry "POR"]
[SourceTitle "playchess.com"]
[Source "ChessBase"]
[SourceQuality "1"]
[TimeControl "5400+30"]

1. d4 {[%emt 0:00:51]} d5 {[%emt 0:00:00]} 2. c4 {[%emt 0:00:06]} e6 {[%emt 0:00:20]} 3. Nc3 Be7 {[%emt 0:00:41]} 4. Nf3 {[%emt 0:00:26]} Nf6 {[%emt 0:00:21]} 5. Bf4 {[%emt 0:00:55]} O-O {[%emt 0:01:10]} 6. e3 {[%emt 0:00:08]} Nbd7 {[%emt 0:00:50]} 7. h3 dxc4 {[%emt 0:06:36] D37: Queen's Gambit Declined: 5 Bf4} 8. Bxc4 {[%emt 0:01:12]} c5 {[%emt 0:03:01]} 9. O-O {[%emt 0:08:11]} Nb6 $146 {[%emt 0:12:31]} (9... cxd4 $11 10. Qxd4 (10. exd4 Nb6 $11) 10... Nb6) ({Predecessor:} 9... a6 10. a4 cxd4 11. Qxd4 b6 12. Rfd1 Bb7 13. Ne5 Bc5 14. Qd3 Nxe5 15. Bxe5 {½-½ (47) Kretchetov,A (2343)-Hess,R (2624) Los Angeles 2012}) 10. Bb3 {[%emt 0:09:19]} Nbd5 {[%emt 0:05:35]} 11. Bh2 {[%emt 0:12:09]} cxd4 {[%emt 0:07:55]} 12. Nxd5 {[%emt 0:06:24]} Nxd5 {[%emt 0:00:48]} 13. e4 Nf6 {[%emt 0:01:31]} 14. e5 {[%emt 0:02:31]} Nd5 {[%emt 0:01:03]} 15. Nxd4 {[%emt 0:00:48]} Bc5 {[%emt 0:05:21]} 16. Rc1 {[%emt 0:07:38]} b6 {[%emt 0:11:39]} 17. Rxc5 $2 {[%emt 0:08:42]} (17. Nf5 $11) 17... bxc5 {[%emt 0:00:50]} 18. Nb5 {[%emt 0:00:10]} Ba6 {[%emt 0:00:20]} 19. Bc4 {[%emt 0:03:30]} Bxb5 {[%emt 0:01:31]} 20. Bxb5 {[%emt 0:00:08]} Rb8 {[%emt 0:01:10]} 21. Qe2 {[%emt 0:01:58]} Qb6 {[%emt 0:02:26]} 22. Bd3 {[%emt 0:00:06]} Qxb2 {[%emt 0:01:49]} 23. Qe4 {[%emt 0:00:17]} g6 {[%emt 0:00:40]} 24. Bg3 {[%emt 0:03:56]} Qd4 {[%emt 0:02:05]} 25. Qf3 {[%emt 0:01:50]} c4 {[%emt 0:01:06]} 26. Be4 {[%emt 0:02:31]} h5 27. Rd1 {[%emt 0:00:30]} Qc3 $11 {[%emt 0:02:11]} (27... Qc5 $19 28. Bxd5 exd5) 28. Bxd5 {[%emt 0:01:26]} Qxf3 {[%emt 0:00:14]} 29. Bxf3 {[%emt 0:09:53]} Rb2 {[%emt 0:02:28]} 30. Rd7 {[%emt 0:00:09]} Rxa2 31. Rc7 {[%emt 0:00:37]} Ra4 {[%emt 0:03:59]} 32. Bh4 {[%emt 0:00:51]} c3 {[%emt 0:04:20]} 33. Bf6 {[%emt 0:00:30]} a5 {[%emt 0:00:30]} 34. Rxc3 {[%emt 0:02:40]} Ra1+ {[%emt 0:01:24]} 35. Kh2 {[%emt 0:00:30]} Rb1 {[%emt 0:00:30]} 36. Rc7 {[%emt 0:02:17]} a4 {[%emt 0:02:02]} 37. Ra7 {[%emt 0:00:50]} Ra1 {[%emt 0:00:52]} 38. Be4 {[%emt 0:07:04]} a3 {[%emt 0:01:47]} 39. Be7 {[%emt 0:01:19]} Rb8 {[%emt 0:00:41]} 40. Rxa3 1/2-1/2

[Event "VII Famalicao Open 2019"]
[Site "Famalicao"]
[Date "2019.07.30"]
[Round "4.4"]
[White "Petkov, Vladimir"]
[Black "Vassallo Barroche, Mauricio"]
[Result "1/2-1/2"]
[ECO "D37"]
[WhiteElo "2497"]
[BlackElo "2380"]
[Annotator "ChessBase"]
[PlyCount "108"]
[EventDate "2019.07.28"]
[EventType "swiss"]
[EventCountry "POR"]
[SourceTitle "playchess.com"]
[Source "ChessBase"]
[SourceQuality "1"]
[TimeControl "5400+30"]

1. d4 {[%emt 0:02:43]} Nf6 {[%emt 0:04:32]} 2. c4 {[%emt 0:02:10]} e6 {[%emt 0:03:12]} 3. Nc3 {[%emt 0:04:53]} d5 {[%emt 0:00:09]} 4. Nf3 {[%emt 0:00:47]} Be7 {[%emt 0:02:41]} 5. g3 {[%emt 0:05:58]} O-O {[%emt 0:03:19]} 6. Bg2 {[%emt 0:00:08]} c6 {[%emt 0:01:45]} 7. Qd3 {[%emt 0:03:32]} dxc4 {[%emt 0:05:05]} 8. Qxc4 {[%emt 0:01:16]} b5 {[%emt 0:00:23]} 9. Qd3 {[%emt 0:01:58]} Ba6 {[%emt 0:02:26]} 10. Ne4 {[%emt 0:05:39]} Nbd7 {[%emt 0:01:58]} 11. O-O {[%emt 0:01:18]} Qb6 {[%emt 0:03:58]} 12. Bg5 {[%emt 0:02:59]} Rfd8 {[%emt 0:06:13]} 13. Qc2 {[%emt 0:00:44]} Rac8 {[%emt 0:09:47]} 14. Ne5 {[%emt 0:04:03]} c5 {[%emt 0:03:18]} 15. Nxd7 {[%emt 0:22:26]} Rxd7 {[%emt 0:00:29]} 16. Bxf6 {[%emt 0:03:01]} cxd4 {[%emt 0:01:59]} 17. Qd2 {[%emt 0:00:35]} Bxf6 {[%emt 0:04:12]} 18. Nxf6+ {[%emt 0:00:57]} gxf6 {[%emt 0:00:02]} 19. Qh6 {[%emt 0:00:19]} Qd8 {[%emt 0:01:01]} 20. Be4 {[%emt 0:00:23]} f5 {[%emt 0:01:13]} 21. Bxf5 {[%emt 0:00:14]} exf5 {[%emt 0:01:50]} 22. Qxa6 {[%emt 0:00:14]} Rc5 {[%emt 0:02:30]} 23. Rfd1 {[%emt 0:03:18]} Qe7 {[%emt 0:04:10]} 24. Rd2 {[%emt 0:03:06]} f4 {[%emt 0:02:57]} 25. Rad1 {[%emt 0:01:47]} fxg3 {[%emt 0:00:34]} 26. hxg3 {[%emt 0:00:06]} Qe4 {[%emt 0:08:49]} 27. Qh6 {[%emt 0:05:50]} Rf5 {[%emt 0:04:32]} 28. Rc1 {[%emt 0:04:31]} Rd8 {[%emt 0:00:45]} 29. b4 {[%emt 0:01:40]} Qe7 {[%emt 0:02:03]} 30. a3 {[%emt 0:01:04]} Re5 {[%emt 0:02:44]} 31. Qf4 {[%emt 0:01:56]} Qd6 {[%emt 0:04:54]} 32. Qg4+ {[%emt 0:05:12]} Kf8 {[%emt 0:00:32]} 33. Rd3 {[%emt 0:02:44]} h5 {[%emt 0:02:10]} 34. Qf3 {[%emt 0:03:02]} Qe7 {[%emt 0:02:21]} 35. Rc2 {[%emt 0:01:40]} h4 {[%emt 0:01:28]} 36. Qf4 {[%emt 0:00:38]} Rxe2 {[%emt 0:04:41]} 37. Qh6+ {[%emt 0:01:46]} Kg8 {[%emt 0:00:07]} 38. Rxe2 {[%emt 0:02:09]} Qxe2 {[%emt 0:00:01]} 39. Qg5+ {[%emt 0:00:08]} Kh7 {[%emt 0:00:00]} 40. Qxh4+ {[%emt 0:00:01]} Kg6 {[%emt 0:00:09]} 41. Rxd4 {[%emt 0:00:35]} Rxd4 {[%emt 0:00:13]} 42. Qxd4 {[%emt 0:00:06]} a6 {[%emt 0:00:58]} 43. Qd6+ {[%emt 0:01:01]} f6 {[%emt 0:01:18]} 44. Qd5 {[%emt 0:00:21]} Kg7 {[%emt 0:00:46]} 45. Kg2 {[%emt 0:00:24]} Qg4 {[%emt 0:00:54]} 46. f3 {[%emt 0:00:55]} Qc8 {[%emt 0:00:08]} 47. g4 {[%emt 0:00:45]} Qc2+ {[%emt 0:00:19]} 48. Kg3 {[%emt 0:00:14]} Qc7+ {[%emt 0:00:18]} 49. f4 {[%emt 0:00:59]} Qc3+ {[%emt 0:00:54]} 50. Kh4 {[%emt 0:00:27]} Qe1+ {[%emt 0:00:15]} 51. Kh5 {[%emt 0:00:25]} Qe8+ {[%emt 0:00:06]} 52. Kh4 {[%emt 0:00:13]} Qe1+ {[%emt 0:00:01]} 53. Kh5 {[%emt 0:01:57]} Qe8+ {[%emt 0:00:05]} 54. Kh4 {[%emt 0:00:06]} Qe1+ 1/2-1/2

[Event "VII Famalicao Open 2019"]
[Site "Famalicao"]
[Date "2019.07.30"]
[Round "4.9"]
[White "Dumont, Andre"]
[Black "Fidalgo, Andre Neves"]
[Result "0-1"]
[ECO "A48"]
[WhiteElo "1948"]
[BlackElo "2262"]
[Annotator "RC"]
[PlyCount "48"]
[EventDate "2019.07.28"]
[EventType "swiss"]
[EventCountry "POR"]
[SourceTitle "playchess.com"]
[Source "ChessBase"]
[SourceQuality "1"]
[TimeControl "5400+30"]

1. d4 {[%emt 0:03:30]} Nf6 {[%emt 0:00:00]} 2. Nf3 {[%emt 0:00:09]} g6 {[%emt 0:00:06]} 3. b3 {[%emt 0:00:23]} c5 {[%emt 0:00:42]} 4. e3 {[%emt 0:00:01]} cxd4 {[%emt 0:00:36]} 5. exd4 {[%emt 0:00:02]} Bg7 {[%emt 0:00:11]} 6. Bb2 {[%emt 0:00:01]} d5 {[%emt 0:00:10]} 7. Be2 {[%emt 0:01:28]} O-O {[%emt 0:00:07]} 8. O-O {[%emt 0:00:02]} Nc6 {[%emt 0:00:11]} 9. Nbd2 {[%emt 0:00:42]} Bf5 {[%emt 0:03:32]} 10. a3 {[%emt 0:01:01]} Rc8 {[%emt 0:01:06]} 11. Rc1 {[%emt 0:00:23]} Ne4 {[%emt 0:05:27]} 12. c4 {[%emt 0:09:40]} dxc4 {[%emt 0:03:50]} 13. Nxc4 {[%emt 0:01:08]} Be6 {[%emt 0:10:30]} 14. b4 {[%emt 0:13:55]} Bxc4 15. Bxc4 {[%emt 0:04:59]} e6 {[%emt 0:19:54]} 16. Ne5 {[%emt 0:05:53]} Nxe5 {[%emt 0:04:33]} 17. dxe5 {[%emt 0:00:08]} Nd2 {[%emt 0:00:05]} 18. Bxe6 {[%emt 0:07:33]} Rxc1 {[%emt 0:02:17]} 19. Bxf7+ {[%emt 0:00:59]} Kxf7 {[%emt 0:13:25]} 20. Qxc1 {[%emt 0:05:41]} Nxf1 {[%emt 0:00:42]} 21. Qc4+ {[%emt 0:01:01]} Ke8 {[%emt 0:01:55]} 22. Qb5+ {[%emt 0:05:29]} Qd7 {[%emt 0:00:07]} 23. Qxd7+ {[%emt 0:00:38]} Kxd7 {[%emt 0:00:06]} 24. e6+ {[%emt 0:00:04]} Ke7 {[%emt 0:00:26]} 0-1

[Event "VII Famalicao Open 2019"]
[Site "Famalicao"]
[Date "2019.07.30"]
[Round "4.11"]
[White "Pinho, Paulo"]
[Black "Ribeiro, Bruno"]
[Result "1-0"]
[ECO "D02"]
[WhiteElo "2200"]
[BlackElo "2102"]
[Annotator "ChessBase"]
[PlyCount "63"]
[EventDate "2019.07.28"]
[EventType "swiss"]
[EventCountry "POR"]
[SourceTitle "playchess.com"]
[Source "ChessBase"]
[SourceQuality "1"]
[TimeControl "5400+30"]

1. d4 {[%emt 0:00:00]} d5 {[%emt 0:00:00]} 2. Nf3 {[%emt 0:00:05]} Nf6 {[%emt 0:00:00]} 3. c4 {[%emt 0:00:52]} e6 {[%emt 0:00:08]} 4. g3 {[%emt 0:02:01]} c6 {[%emt 0:00:16]} 5. Bg2 {[%emt 0:00:38]} Be7 {[%emt 0:00:28]} 6. O-O {[%emt 0:00:14]} O-O {[%emt 0:00:04]} 7. Qc2 {[%emt 0:03:16]} b6 {[%emt 0:00:13]} 8. Rd1 {[%emt 0:00:16]} Bb7 {[%emt 0:00:37]} 9. b3 {[%emt 0:02:03]} Na6 {[%emt 0:00:24]} 10. Nc3 {[%emt 0:00:24]} Nb4 {[%emt 0:05:27]} 11. Qb1 {[%emt 0:00:49]} c5 {[%emt 0:02:25]} 12. a3 {[%emt 0:16:42]} Na6 {[%emt 0:26:30]} 13. Bb2 {[%emt 0:07:24]} Nc7 {[%emt 0:01:09]} 14. cxd5 {[%emt 0:03:45]} exd5 {[%emt 0:05:34]} 15. e4 {[%emt 0:07:57]} Nxe4 {[%emt 0:08:32]} 16. Nxe4 {[%emt 0:00:09]} dxe4 {[%emt 0:00:09]} 17. dxc5 {[%emt 0:00:05]} Qc8 {[%emt 0:00:54]} 18. Ne5 {[%emt 0:08:38]} e3 {[%emt 0:05:49]} 19. c6 {[%emt 0:05:47]} exf2+ {[%emt 0:00:57]} 20. Kh1 {[%emt 0:07:49]} Ba6 {[%emt 0:01:11]} 21. Qc2 {[%emt 0:03:58]} f1=Q+ {[%emt 0:04:49]} 22. Bxf1 {[%emt 0:05:17]} Bxf1 {[%emt 0:00:44]} 23. Rxf1 {[%emt 0:00:04]} Ne6 {[%emt 0:12:46]} 24. Qc4 {[%emt 0:07:31]} Bd6 {[%emt 0:06:52]} 25. Nd7 {[%emt 0:04:30]} Bc5 {[%emt 0:00:49]} 26. Qd5 {[%emt 0:02:22]} Re8 {[%emt 0:01:25]} 27. b4 {[%emt 0:01:50]} Bf8 {[%emt 0:01:11]} 28. b5 {[%emt 0:00:17]} Qd8 {[%emt 0:00:44]} 29. Qh5 {[%emt 0:03:08]} Re7 {[%emt 0:01:49]} 30. Rad1 {[%emt 0:00:13]} Qc8 {[%emt 0:01:51]} 31. Be5 {[%emt 0:02:34]} Nd8 {[%emt 0:01:27]} 32. Nxf8 {[%emt 0:01:18]} 1-0

[Event "VII Famalicao Open 2019"]
[Site "Famalicao"]
[Date "2019.07.30"]
[Round "4.12"]
[White "Santos, Jose Guilherme B Lim"]
[Black "Demyanchuk, Sergey"]
[Result "1-0"]
[ECO "A06"]
[WhiteElo "2155"]
[BlackElo "1836"]
[Annotator "RC"]
[PlyCount "73"]
[EventDate "2019.07.28"]
[EventType "swiss"]
[EventCountry "POR"]
[SourceTitle "playchess.com"]
[Source "ChessBase"]
[SourceQuality "1"]
[TimeControl "5400+30"]

1. Nf3 {[%emt 0:00:00]} d5 {[%emt 0:00:50]} 2. g3 {[%emt 0:00:00]} Nf6 {[%emt 0:00:06]} 3. Bg2 {[%emt 0:00:00]} e6 {[%emt 0:00:12]} 4. O-O {[%emt 0:00:47]} Be7 {[%emt 0:00:12]} 5. c4 {[%emt 0:01:08]} c6 {[%emt 0:00:14]} 6. b3 {[%emt 0:00:53]} O-O {[%emt 0:00:08]} 7. Bb2 {[%emt 0:00:04]} Nbd7 {[%emt 0:00:18]} 8. d3 {[%emt 0:00:57]} b6 {[%emt 0:00:17]} 9. Qc2 {[%emt 0:08:42]} Bb7 {[%emt 0:00:39]} 10. e4 {[%emt 0:02:07]} Rc8 {[%emt 0:02:29]} 11. e5 {[%emt 0:04:09]} Ng4 {[%emt 0:00:31]} 12. h3 {[%emt 0:06:01]} Nh6 {[%emt 0:00:16]} 13. g4 {[%emt 0:02:35]} f5 {[%emt 0:02:14]} 14. Nd4 {[%emt 0:08:29]} Nxe5 {[%emt 0:03:58]} 15. Nxe6 {[%emt 0:01:13]} Qd6 {[%emt 0:00:11]} 16. Nxf8 {[%emt 0:01:36]} Rxf8 {[%emt 0:01:08]} 17. f4 {[%emt 0:06:27]} Ng6 {[%emt 0:11:54]} 18. g5 {[%emt 0:01:52]} Nf7 {[%emt 0:00:13]} 19. Qf2 {[%emt 0:00:23]} dxc4 {[%emt 0:00:35]} 20. dxc4 {[%emt 0:03:23]} Qd3 {[%emt 0:00:17]} 21. Qd2 {[%emt 0:10:39]} Bc5+ {[%emt 0:00:46]} 22. Kh1 {[%emt 0:01:17]} Qg3 {[%emt 0:00:49]} 23. Rf3 {[%emt 0:01:29]} Qh4 {[%emt 0:00:15]} 24. Qc3 {[%emt 0:00:11]} Nge5 {[%emt 0:01:46]} 25. fxe5 {[%emt 0:01:06]} Nxg5 {[%emt 0:00:16]} 26. Nd2 {[%emt 0:05:42]} Nxf3 {[%emt 0:01:04]} 27. Nxf3 {[%emt 0:00:05]} Qh6 {[%emt 0:02:45]} 28. Rd1 {[%emt 0:00:51]} f4 {[%emt 0:01:41]} 29. b4 {[%emt 0:01:49]} Be7 {[%emt 0:04:16]} 30. Rd7 {[%emt 0:00:54]} Bc8 {[%emt 0:00:12]} 31. Rxe7 {[%emt 0:00:31]} Bxh3 {[%emt 0:00:27]} 32. Kg1 {[%emt 0:02:34]} Bxg2 {[%emt 0:00:42]} 33. Kxg2 {[%emt 0:00:06]} Qg6+ {[%emt 0:00:25]} 34. Kf1 {[%emt 0:00:40]} Qg3 {[%emt 0:01:30]} 35. e6 {[%emt 0:01:32]} Qh3+ {[%emt 0:00:45]} 36. Ke1 {[%emt 0:00:27]} Qh1+ {[%emt 0:01:17]} 37. Kf2 {[%emt 0:00:34]} 1-0